[Event "*** Qualifier 4: Titled Tuesday 3|2 Blitz"]
[Site "Chess.com"]
[Date "2017.04.25"]
[Round "4"]
[White "Ingemars_Jesse"]
[Black "PowerThinking2650"]
[Result "0-1"]
[WhiteElo "2434"]
[BlackElo "2304"]
[TimeControl "180+2"]
[EndTime "13:49:24 PDT"]
[Termination "PowerThinking2650 won by resignation"]

1. Nf3 {[%clk 0:03:02]} 1... Nf6 {[%clk 0:03:00.2]} 2. g3 {[%clk 0:03:03.3]}
2... g6 {[%clk 0:03:01.8]} 3. b3 {[%clk 0:03:04.8]} 3... Bg7 {[%clk 0:03:03.5]}
4. Bb2 {[%clk 0:03:06.3]} 4... O-O {[%clk 0:03:04]} 5. Bg2 {[%clk 0:03:07.7]}
5... d6 {[%clk 0:02:58.8]} 6. d4 {[%clk 0:03:08.1]} 6... Ne4 {[%clk 0:02:56.1]}
7. O-O {[%clk 0:03:05.9]} 7... c5 {[%clk 0:02:56.6]} 8. c4 {[%clk 0:03:06.2]}
8... Nc6 {[%clk 0:02:55.2]} 9. Nbd2 {[%clk 0:03:06.3]} 9... Bf5 {[%clk
0:02:23.1]} 10. Nh4 {[%clk 0:03:05.4]} 10... Nxd2 {[%clk 0:02:22.1]} 11. Qxd2
{[%clk 0:03:04.8]} 11... Nxd4 {[%clk 0:02:11.6]} 12. Nxf5 {[%clk 0:03:02]} 12...
Nxf5 {[%clk 0:01:49]} 13. Bxg7 {[%clk 0:02:55.9]} 13... Kxg7 {[%clk 0:01:49.3]}
14. Bxb7 {[%clk 0:02:55.9]} 14... Rb8 {[%clk 0:01:50.3]} 15. Bg2 {[%clk
0:02:44.7]} 15... h5 {[%clk 0:01:49.5]} 16. Bh3 {[%clk 0:02:34]} 16... Nd4
{[%clk 0:01:43.2]} 17. Bg2 {[%clk 0:02:21.5]} 17... a5 {[%clk 0:01:01]} 18. e3
{[%clk 0:02:21.8]} 18... Nf5 {[%clk 0:00:58.9]} 19. Bh3 {[%clk 0:02:15.9]} 19...
e6 {[%clk 0:00:51.2]} 20. Rfd1 {[%clk 0:02:12.4]} 20... a4 {[%clk 0:00:43.5]}
21. Bxf5 {[%clk 0:02:06.6]} 21... gxf5 {[%clk 0:00:44.2]} 22. Qxd6 {[%clk
0:01:42.8]} 22... Qxd6 {[%clk 0:00:45.1]} 23. Rxd6 {[%clk 0:01:44.7]} 23... axb3
{[%clk 0:00:46.4]} 24. axb3 {[%clk 0:01:46.6]} 24... Rxb3 {[%clk 0:00:37.4]} 25.
Ra5 {[%clk 0:01:33]} 25... h4 {[%clk 0:00:26.1]} 26. Kg2 {[%clk 0:01:30.9]}
26... hxg3 {[%clk 0:00:25.3]} 27. hxg3 {[%clk 0:01:30.6]} 27... Rb2 {[%clk
0:00:19.3]} 28. Rd7 {[%clk 0:01:22.7]} 28... Rc2 {[%clk 0:00:09]} 29. Rxc5
{[%clk 0:01:22.2]} 29... Rb8 {[%clk 0:00:05.4]} 30. Rcc7 {[%clk 0:00:48.2]}
30... Rbb2 {[%clk 0:00:05.8]} 31. Rxf7+ {[%clk 0:00:48.3]} 31... Kg6 {[%clk
0:00:06.8]} 32. Rfe7 {[%clk 0:00:16.4]} 32... Rxf2+ {[%clk 0:00:06.9]} 33. Kg1
{[%clk 0:00:17.3]} 33... Rg2+ {[%clk 0:00:05.1]} 34. Kh1 {[%clk 0:00:17.8]}
34... Rh2+ {[%clk 0:00:05.5]} 35. Kg1 {[%clk 0:00:18.5]} 35... Rbg2+ {[%clk
0:00:06.5]} 36. Kf1 {[%clk 0:00:18.9]} 36... Rf2+ {[%clk 0:00:07.1]} 37. Kg1
{[%clk 0:00:18.2]} 37... Rhg2+ {[%clk 0:00:07.6]} 38. Kh1 {[%clk 0:00:18.8]}
38... Kf6 {[%clk 0:00:07.5]} 39. Rf7+ {[%clk 0:00:18]} 39... Ke5 {[%clk
0:00:05.7]} 40. Rfe7 {[%clk 0:00:18.5]} 40... Ke4 {[%clk 0:00:05.2]} 41. Ra7
{[%clk 0:00:13.3]} 41... Kf3 {[%clk 0:00:04.3]} 42. Ra1 {[%clk 0:00:08.2]} 42...
Rh2+ {[%clk 0:00:04.8]} 0-1

[Event "*** Qualifier 4: Titled Tuesday 3|2 Blitz"]
[Site "Chess.com"]
[Date "2017.04.25"]
[Round "4"]
[White "RichardLeyvaP"]
[Black "GrigorGrigorov"]
[Result "1-0"]
[WhiteElo "2416"]
[BlackElo "2498"]
[TimeControl "180+2"]
[EndTime "13:49:31 PDT"]
[Termination "RichardLeyvaP won by resignation"]

1. e4 {[%clk 0:03:02]} 1... g6 {[%clk 0:03:00.6]} 2. d4 {[%clk 0:03:02.4]} 2...
Bg7 {[%clk 0:03:02.1]} 3. Nc3 {[%clk 0:03:03.3]} 3... c6 {[%clk 0:03:03.2]} 4.
Bc4 {[%clk 0:03:03.3]} 4... d6 {[%clk 0:03:03.6]} 5. Qf3 {[%clk 0:03:03.2]} 5...
e6 {[%clk 0:03:04.5]} 6. Nge2 {[%clk 0:03:04.4]} 6... Nd7 {[%clk 0:03:02.8]} 7.
Bb3 {[%clk 0:03:04.5]} 7... Ngf6 {[%clk 0:03:02.5]} 8. Bf4 {[%clk 0:02:57.5]}
8... e5 {[%clk 0:02:59.1]} 9. dxe5 {[%clk 0:02:58.3]} 9... dxe5 {[%clk 0:02:58]}
10. Bg5 {[%clk 0:02:53.8]} 10... O-O {[%clk 0:02:58.2]} 11. O-O {[%clk
0:02:47.6]} 11... Nc5 {[%clk 0:02:55.3]} 12. Rad1 {[%clk 0:02:46.7]} 12... Qe7
{[%clk 0:02:55.2]} 13. h3 {[%clk 0:02:45.8]} 13... b5 {[%clk 0:02:48.7]} 14. a3
{[%clk 0:02:12.4]} 14... a5 {[%clk 0:02:45]} 15. Ng3 {[%clk 0:02:08.3]} 15...
Nxb3 {[%clk 0:02:18.4]} 16. cxb3 {[%clk 0:02:03.8]} 16... h6 {[%clk 0:02:19.8]}
17. Be3 {[%clk 0:01:57.4]} 17... Be6 {[%clk 0:02:17.3]} 18. Rc1 {[%clk
0:01:38.5]} 18... Bxb3 {[%clk 0:02:10]} 19. Nb1 {[%clk 0:01:39.2]} 19... Bc4
{[%clk 0:02:07.5]} 20. Rfe1 {[%clk 0:01:36.3]} 20... Qe6 {[%clk 0:01:58.8]} 21.
Nd2 {[%clk 0:01:20.8]} 21... Bd3 {[%clk 0:01:47.2]} 22. Rc3 {[%clk 0:01:15.6]}
22... Rfd8 {[%clk 0:01:15.7]} 23. Rec1 {[%clk 0:01:11.6]} 23... Qd7 {[%clk
0:00:38.8]} 24. Bb6 {[%clk 0:00:50.4]} 24... b4 {[%clk 0:00:39.3]} 25. Rxc6
{[%clk 0:00:39.7]} 25... Bb5 {[%clk 0:00:38.1]} 26. Bxd8 {[%clk 0:00:22.6]}
26... Rxd8 {[%clk 0:00:20.5]} 27. R6c2 {[%clk 0:00:13.4]} 27... bxa3 {[%clk
0:00:21]} 28. bxa3 {[%clk 0:00:14]} 28... Ba4 {[%clk 0:00:20.8]} 29. Rb2 {[%clk
0:00:11.7]} 29... h5 {[%clk 0:00:21.8]} 30. Ndf1 {[%clk 0:00:10.8]} 30... Qd4
{[%clk 0:00:19.5]} 31. Rd2 {[%clk 0:00:10.6]} 31... Qb6 {[%clk 0:00:18.6]} 32.
Rxd8+ {[%clk 0:00:09.9]} 32... Qxd8 {[%clk 0:00:20.5]} 33. Qc3 {[%clk
0:00:09.4]} 33... h4 {[%clk 0:00:19.2]} 34. Ne2 {[%clk 0:00:10.6]} 34... Nxe4
{[%clk 0:00:18.8]} 35. Qc8 {[%clk 0:00:11.5]} 35... Qxc8 {[%clk 0:00:19.6]} 36.
Rxc8+ {[%clk 0:00:13.3]} 36... Bf8 {[%clk 0:00:21.3]} 37. Ra8 {[%clk 0:00:13.9]}
37... Bd1 {[%clk 0:00:20.5]} 38. Nc1 {[%clk 0:00:13]} 38... a4 {[%clk
0:00:18.9]} 39. Ne3 {[%clk 0:00:14.2]} 39... Bb3 {[%clk 0:00:19]} 40. Nxb3
{[%clk 0:00:12]} 40... axb3 {[%clk 0:00:20.2]} 41. Rb8 {[%clk 0:00:13.9]} 41...
Nd2 {[%clk 0:00:21.2]} 42. a4 {[%clk 0:00:15.3]} 42... Kg7 {[%clk 0:00:21.5]}
43. a5 {[%clk 0:00:16.7]} 43... Bc5 {[%clk 0:00:22.4]} 44. a6 {[%clk 0:00:18]}
44... f5 {[%clk 0:00:22.8]} 45. Nd1 {[%clk 0:00:19]} 45... Nc4 {[%clk
0:00:21.9]} 46. Rc8 {[%clk 0:00:18.6]} 46... b2 {[%clk 0:00:22.7]} 47. Nxb2
{[%clk 0:00:19.8]} 1-0

[Event "*** Qualifier 4: Titled Tuesday 3|2 Blitz"]
[Site "Chess.com"]
[Date "2017.04.25"]
[Round "4"]
[White "Indianlad"]
[Black "Yaacovn"]
[Result "1/2-1/2"]
[WhiteElo "2697"]
[BlackElo "2613"]
[TimeControl "180+2"]
[EndTime "13:49:33 PDT"]
[Termination "Game drawn by repetition"]

1. d4 {[%clk 0:03:02]} 1... Nf6 {[%clk 0:03:00.9]} 2. c4 {[%clk 0:03:03]} 2...
e5 {[%clk 0:03:00.5]} 3. dxe5 {[%clk 0:03:02.2]} 3... Ne4 {[%clk 0:03:02.1]} 4.
Nf3 {[%clk 0:02:57.9]} 4... Nc6 {[%clk 0:03:03.1]} 5. Nbd2 {[%clk 0:02:55.9]}
5... Bb4 {[%clk 0:03:02.8]} 6. a3 {[%clk 0:02:53.6]} 6... Nxd2 {[%clk
0:03:02.8]} 7. Bxd2 {[%clk 0:02:55.5]} 7... Bxd2+ {[%clk 0:03:01.6]} 8. Qxd2
{[%clk 0:02:57.4]} 8... O-O {[%clk 0:03:03.3]} 9. Qc3 {[%clk 0:02:54.6]} 9...
Qe7 {[%clk 0:03:04.4]} 10. Rd1 {[%clk 0:02:54.2]} 10... Re8 {[%clk 0:03:05.6]}
11. Rd5 {[%clk 0:02:46.9]} 11... b6 {[%clk 0:03:05.7]} 12. g3 {[%clk 0:02:44.4]}
12... Bb7 {[%clk 0:03:05.9]} 13. Bg2 {[%clk 0:02:45.8]} 13... d6 {[%clk
0:03:07.1]} 14. O-O {[%clk 0:02:37.7]} 14... Nxe5 {[%clk 0:02:24.5]} 15. Nxe5
{[%clk 0:02:38.5]} 15... dxe5 {[%clk 0:02:24]} 16. Rd2 {[%clk 0:02:26.3]} 16...
Bxg2 {[%clk 0:02:24.7]} 17. Kxg2 {[%clk 0:02:28.2]} 17... e4 {[%clk 0:02:15.2]}
18. Rfd1 {[%clk 0:02:27.8]} 18... e3 {[%clk 0:02:10.1]} 19. Rd7 {[%clk
0:02:27.2]} 19... Qe6 {[%clk 0:01:55.7]} 20. f3 {[%clk 0:02:27]} 20... Rac8
{[%clk 0:01:50.9]} 21. R1d4 {[%clk 0:02:20.3]} 21... h5 {[%clk 0:01:41.9]} 22.
Qd3 {[%clk 0:02:07.1]} 22... Re7 {[%clk 0:01:15.5]} 23. Rxe7 {[%clk 0:02:06.1]}
23... Qxe7 {[%clk 0:01:16.7]} 24. Re4 {[%clk 0:02:07.4]} 24... Qf6 {[%clk
0:01:15.5]} 25. b4 {[%clk 0:02:05.8]} 25... c5 {[%clk 0:00:56.7]} 26. Qxe3
{[%clk 0:02:04.6]} 26... cxb4 {[%clk 0:00:53]} 27. axb4 {[%clk 0:02:06.5]} 27...
a5 {[%clk 0:00:48.2]} 28. bxa5 {[%clk 0:01:52.5]} 28... bxa5 {[%clk 0:00:50.1]}
29. Re8+ {[%clk 0:01:52.6]} 29... Rxe8 {[%clk 0:00:49.1]} 30. Qxe8+ {[%clk
0:01:54.5]} 30... Kh7 {[%clk 0:00:50.8]} 31. c5 {[%clk 0:01:56.4]} 31... Qc3
{[%clk 0:00:36.2]} 32. c6 {[%clk 0:01:56.9]} 32... Kh6 {[%clk 0:00:13.7]} 33.
Qe4 {[%clk 0:01:40.2]} 33... g6 {[%clk 0:00:11.1]} 34. Qf4+ {[%clk 0:01:40.5]}
34... Kg7 {[%clk 0:00:11.7]} 35. c7 {[%clk 0:01:41.6]} 35... a4 {[%clk
0:00:12.9]} 36. Qxa4 {[%clk 0:01:24.8]} 36... Qxc7 {[%clk 0:00:13.6]} 37. Qe4
{[%clk 0:01:26.3]} 37... Qd6 {[%clk 0:00:13.9]} 38. f4 {[%clk 0:01:26.3]} 38...
Qd1 {[%clk 0:00:14.7]} 39. Qe5+ {[%clk 0:01:23]} 39... Kg8 {[%clk 0:00:15.5]}
40. Kh3 {[%clk 0:01:20.2]} 40... Qf1+ {[%clk 0:00:14.4]} 41. Kh4 {[%clk
0:01:20.1]} 41... Qd1 {[%clk 0:00:10.2]} 42. Kg5 {[%clk 0:01:11.4]} 42... Qd8+
{[%clk 0:00:10.6]} 43. Qf6 {[%clk 0:01:10.4]} 43... Qf8 {[%clk 0:00:10]} 44. f5
{[%clk 0:01:03.2]} 44... Qc5 {[%clk 0:00:06.8]} 45. Kh6 {[%clk 0:00:53.9]} 45...
Qf8+ {[%clk 0:00:06.2]} 46. Kg5 {[%clk 0:00:55]} 46... Qc5 {[%clk 0:00:07.8]}
47. Qd8+ {[%clk 0:00:51.6]} 47... Kg7 {[%clk 0:00:07.8]} 48. Qf6+ {[%clk
0:00:40.1]} 48... Kg8 {[%clk 0:00:05.8]} 1/2-1/2

[Event "*** Qualifier 4: Titled Tuesday 3|2 Blitz"]
[Site "Chess.com"]
[Date "2017.04.25"]
[Round "4"]
[White "silverback96"]
[Black "Makalexa"]
[Result "0-1"]
[WhiteElo "2040"]
[BlackElo "2186"]
[TimeControl "180+2"]
[EndTime "13:50:13 PDT"]
[Termination "Makalexa won by checkmate"]

1. d4 {[%clk 0:03:02]} 1... Nf6 {[%clk 0:03:00.5]} 2. c4 {[%clk 0:03:03.3]} 2...
g6 {[%clk 0:03:01.9]} 3. g3 {[%clk 0:03:04.4]} 3... Bg7 {[%clk 0:03:01.6]} 4.
Bg2 {[%clk 0:03:06]} 4... O-O {[%clk 0:03:03.2]} 5. Nc3 {[%clk 0:03:06.7]} 5...
c5 {[%clk 0:03:03.1]} 6. d5 {[%clk 0:03:07.5]} 6... e6 {[%clk 0:03:00.1]} 7. Nf3
{[%clk 0:03:08.6]} 7... exd5 {[%clk 0:03:01.2]} 8. cxd5 {[%clk 0:03:10.5]} 8...
d6 {[%clk 0:03:02.5]} 9. O-O {[%clk 0:03:12.1]} 9... Re8 {[%clk 0:03:03.7]} 10.
Bf4 {[%clk 0:03:13.7]} 10... a6 {[%clk 0:03:03.6]} 11. a4 {[%clk 0:03:14.3]}
11... Nh5 {[%clk 0:03:01]} 12. Bg5 {[%clk 0:03:15.2]} 12... f6 {[%clk
0:03:01.7]} 13. Bc1 {[%clk 0:03:13.3]} 13... f5 {[%clk 0:03:02.4]} 14. Bg5
{[%clk 0:03:13.5]} 14... Bf6 {[%clk 0:02:59.4]} 15. Bxf6 {[%clk 0:03:14.4]}
15... Nxf6 {[%clk 0:03:00.8]} 16. Nd2 {[%clk 0:03:14.5]} 16... Nbd7 {[%clk
0:03:01.5]} 17. Nc4 {[%clk 0:03:15.2]} 17... Nb6 {[%clk 0:02:43.5]} 18. Qd3
{[%clk 0:03:12.5]} 18... Nxc4 {[%clk 0:02:41.7]} 19. Qxc4 {[%clk 0:03:14.4]}
19... Rb8 {[%clk 0:02:41.8]} 20. Ra3 {[%clk 0:03:12.2]} 20... Bd7 {[%clk
0:02:41.2]} 21. Rb3 {[%clk 0:03:13.1]} 21... Qa5 {[%clk 0:02:38.3]} 22. Qf4
{[%clk 0:03:10.5]} 22... Qc7 {[%clk 0:02:32.2]} 23. a5 {[%clk 0:03:06.4]} 23...
Nh5 {[%clk 0:02:27.9]} 24. Qg5 {[%clk 0:03:03.7]} 24... Qxa5 {[%clk 0:02:22.7]}
25. Bf3 {[%clk 0:02:58.9]} 25... Ng7 {[%clk 0:02:09.9]} 26. h4 {[%clk 0:03:00]}
26... Qd8 {[%clk 0:02:10.1]} 27. Qf4 {[%clk 0:02:59.8]} 27... Qe7 {[%clk
0:02:04.5]} 28. Nd1 {[%clk 0:02:58.6]} 28... b5 {[%clk 0:02:04.9]} 29. Re3
{[%clk 0:02:59.4]} 29... Qf8 {[%clk 0:02:04]} 30. Qg5 {[%clk 0:02:58.8]} 30...
Rxe3 {[%clk 0:02:00.6]} 31. Nxe3 {[%clk 0:03:00.7]} 31... Re8 {[%clk 0:02:00.8]}
32. Ra1 {[%clk 0:02:55.4]} 32... Bc8 {[%clk 0:02:01.4]} 33. Ng2 {[%clk
0:02:45.6]} 33... Qe7 {[%clk 0:02:01.6]} 34. Qh6 {[%clk 0:02:39]} 34... Qe5
{[%clk 0:01:59.6]} 35. h5 {[%clk 0:02:27.2]} 35... Qxb2 {[%clk 0:01:46.6]} 36.
Rd1 {[%clk 0:02:25.9]} 36... Qf6 {[%clk 0:01:44.1]} 37. Nf4 {[%clk 0:02:25.3]}
37... Kf7 {[%clk 0:01:31.4]} 38. Qxh7 {[%clk 0:02:18.4]} 38... g5 {[%clk
0:01:28.8]} 39. h6 {[%clk 0:02:04.9]} 39... g4 {[%clk 0:00:56.5]} 40. hxg7
{[%clk 0:02:02.1]} 40... Qxg7 {[%clk 0:00:52]} 41. Qh5+ {[%clk 0:02:03]} 41...
Ke7 {[%clk 0:00:49.3]} 42. Ng6+ {[%clk 0:02:00.4]} 42... Kf6 {[%clk 0:00:47.3]}
43. Bxg4 {[%clk 0:01:20.9]} 43... Qxg6 {[%clk 0:00:43.9]} 44. Qh4+ {[%clk
0:01:07.3]} 44... Qg5 {[%clk 0:00:44.6]} 45. Qh7 {[%clk 0:00:47.6]} 45... fxg4
{[%clk 0:00:42.5]} 46. Qc7 {[%clk 0:00:45.5]} 46... Qe5 {[%clk 0:00:42.3]} 47.
Rd3 {[%clk 0:00:45.7]} 47... Rh8 {[%clk 0:00:31.3]} 48. f4 {[%clk 0:00:35.7]}
48... Qa1+ {[%clk 0:00:27.1]} 49. Kg2 {[%clk 0:00:36.7]} 49... Qh1+ {[%clk
0:00:25.7]} 50. Kf2 {[%clk 0:00:38.2]} 50... Rh2+ {[%clk 0:00:20.4]} 51. Ke3
{[%clk 0:00:39.4]} 51... Qc1+ {[%clk 0:00:21.5]} 52. Rd2 {[%clk 0:00:38.7]}
52... Qc3+ {[%clk 0:00:20.8]} 53. Rd3 {[%clk 0:00:40.1]} 53... Qc1+ {[%clk
0:00:21.5]} 54. Rd2 {[%clk 0:00:41.5]} 54... Qg1+ {[%clk 0:00:19.9]} 55. Kd3
{[%clk 0:00:42.2]} 55... Bf5+ {[%clk 0:00:20.3]} 56. Kc3 {[%clk 0:00:39.2]}
56... Qc1+ {[%clk 0:00:19.5]} 57. Kb3 {[%clk 0:00:40.8]} 57... c4+ {[%clk
0:00:16.9]} 58. Kb4 {[%clk 0:00:34.1]} 58... Qxd2+ {[%clk 0:00:18]} 59. Ka3
{[%clk 0:00:35.4]} 59... Qc3+ {[%clk 0:00:18.5]} 60. Ka2 {[%clk 0:00:36]} 60...
Rxe2# {[%clk 0:00:19.6]} 0-1

[Event "*** Qualifier 4: Titled Tuesday 3|2 Blitz"]
[Site "Chess.com"]
[Date "2017.04.25"]
[Round "4"]
[White "Zlatan56"]
[Black "daro94"]
[Result "1/2-1/2"]
[WhiteElo "2600"]
[BlackElo "2727"]
[TimeControl "180+2"]
[EndTime "13:50:20 PDT"]
[Termination "Game drawn - insufficient material"]

1. Nf3 {[%clk 0:03:02]} 1... Nf6 {[%clk 0:02:59.7]} 2. g3 {[%clk 0:03:01.3]}
2... g6 {[%clk 0:03:00.9]} 3. b3 {[%clk 0:03:00.5]} 3... b6 {[%clk 0:03:01.8]}
4. Bb2 {[%clk 0:03:01.3]} 4... Bg7 {[%clk 0:03:03.1]} 5. Bg2 {[%clk 0:03:02.4]}
5... Bb7 {[%clk 0:03:04.7]} 6. O-O {[%clk 0:03:03.3]} 6... O-O {[%clk
0:03:06.1]} 7. c4 {[%clk 0:03:04.7]} 7... c5 {[%clk 0:03:07.2]} 8. Nc3 {[%clk
0:03:02.3]} 8... d6 {[%clk 0:03:08.5]} 9. d4 {[%clk 0:03:01.4]} 9... cxd4 {[%clk
0:03:09.9]} 10. Nxd4 {[%clk 0:03:02.4]} 10... Bxg2 {[%clk 0:03:10.5]} 11. Kxg2
{[%clk 0:03:04.2]} 11... Qc8 {[%clk 0:03:10]} 12. Qd3 {[%clk 0:02:58.7]} 12...
Nbd7 {[%clk 0:02:53.8]} 13. Rac1 {[%clk 0:02:52.9]} 13... Qb7+ {[%clk
0:02:52.5]} 14. Qf3 {[%clk 0:02:50.2]} 14... Qxf3+ {[%clk 0:02:53.3]} 15. exf3
{[%clk 0:02:40.6]} 15... Rfc8 {[%clk 0:02:50.9]} 16. Rfd1 {[%clk 0:02:36.1]}
16... Kf8 {[%clk 0:02:51]} 17. f4 {[%clk 0:02:34.3]} 17... a6 {[%clk 0:02:50.9]}
18. Rd2 {[%clk 0:02:17.5]} 18... Rab8 {[%clk 0:02:41.1]} 19. Re1 {[%clk
0:02:06.1]} 19... Rb7 {[%clk 0:02:32.1]} 20. Nd5 {[%clk 0:01:39.5]} 20... Nxd5
{[%clk 0:02:28.9]} 21. cxd5 {[%clk 0:01:41.4]} 21... Rc5 {[%clk 0:02:09.7]} 22.
b4 {[%clk 0:01:09.3]} 22... Rxd5 {[%clk 0:01:43.3]} 23. Rc1 {[%clk 0:01:08.5]}
23... Rb8 {[%clk 0:00:46.3]} 24. Rc7 {[%clk 0:01:07.7]} 24... Ke8 {[%clk
0:00:42.6]} 25. Rdc2 {[%clk 0:00:21.6]} 25... Kd8 {[%clk 0:00:08.6]} 26. Nc6+
{[%clk 0:00:21.1]} 26... Kxc7 {[%clk 0:00:09.4]} 27. Nxe7+ {[%clk 0:00:22.1]}
27... Rc5 {[%clk 0:00:04.3]} 28. bxc5 {[%clk 0:00:21.6]} 28... Bxb2 {[%clk
0:00:05.5]} 29. cxb6+ {[%clk 0:00:10.9]} 29... Kxb6 {[%clk 0:00:06.7]} 30. Rxb2+
{[%clk 0:00:12.4]} 30... Kc7 {[%clk 0:00:07.5]} 31. Rc2+ {[%clk 0:00:13.3]}
31... Nc5 {[%clk 0:00:08.6]} 32. Nd5+ {[%clk 0:00:13.8]} 32... Kc6 {[%clk
0:00:09.6]} 33. Nf6 {[%clk 0:00:13.6]} 33... h5 {[%clk 0:00:10.1]} 34. h3 {[%clk
0:00:13.2]} 34... Rb1 {[%clk 0:00:08.9]} 35. g4 {[%clk 0:00:12.6]} 35... hxg4
{[%clk 0:00:10.8]} 36. hxg4 {[%clk 0:00:13.6]} 36... a5 {[%clk 0:00:11.5]} 37.
Nh7 {[%clk 0:00:13.9]} 37... a4 {[%clk 0:00:12.2]} 38. Ng5 {[%clk 0:00:13.7]}
38... Rb7 {[%clk 0:00:13.5]} 39. Kf3 {[%clk 0:00:12.7]} 39... d5 {[%clk
0:00:11.7]} 40. f5 {[%clk 0:00:13.7]} 40... gxf5 {[%clk 0:00:12.7]} 41. gxf5
{[%clk 0:00:15.6]} 41... Kd6 {[%clk 0:00:14.2]} 42. Kf4 {[%clk 0:00:14.9]} 42...
Nd3+ {[%clk 0:00:14.6]} 43. Ke3 {[%clk 0:00:15.4]} 43... Ne5 {[%clk 0:00:16]}
44. f4 {[%clk 0:00:13.7]} 44... Nc6 {[%clk 0:00:12.3]} 45. f6 {[%clk 0:00:13.3]}
45... a3 {[%clk 0:00:12]} 46. Kd2 {[%clk 0:00:10.3]} 46... Nd4 {[%clk
0:00:10.8]} 47. Rc3 {[%clk 0:00:09.9]} 47... Rb2+ {[%clk 0:00:11.4]} 48. Kd3
{[%clk 0:00:10.9]} 48... Nb5 {[%clk 0:00:11.1]} 49. Nxf7+ {[%clk 0:00:09.6]}
49... Ke6 {[%clk 0:00:12.6]} 50. Ng5+ {[%clk 0:00:10.3]} 50... Kxf6 {[%clk
0:00:14]} 51. Rc5 {[%clk 0:00:11.1]} 51... Kf5 {[%clk 0:00:06.5]} 52. Rxd5+
{[%clk 0:00:11.1]} 52... Kxf4 {[%clk 0:00:08.1]} 53. Ne6+ {[%clk 0:00:12]} 53...
Kg4 {[%clk 0:00:08.1]} 54. Nd4 {[%clk 0:00:08.5]} 54... Nxd4 {[%clk 0:00:06.7]}
55. Rxd4+ {[%clk 0:00:10.1]} 55... Kf3 {[%clk 0:00:07.1]} 56. Ra4 {[%clk
0:00:10.9]} 56... Rxa2 {[%clk 0:00:08.5]} 57. Kc3 {[%clk 0:00:12.1]} 57... Ra1
{[%clk 0:00:08.3]} 58. Kb3 {[%clk 0:00:12.5]} 58... Rb1+ {[%clk 0:00:08.5]} 59.
Ka2 {[%clk 0:00:13.3]} 59... Re1 {[%clk 0:00:08.5]} 60. Rxa3+ {[%clk 0:00:13.9]}
60... Re3 {[%clk 0:00:09.9]} 61. Rxe3+ {[%clk 0:00:14.6]} 61... Kxe3 {[%clk
0:00:11.5]} 1/2-1/2

[Event "*** Qualifier 4: Titled Tuesday 3|2 Blitz"]
[Site "Chess.com"]
[Date "2017.04.25"]
[Round "4"]
[White "Rodalquilar"]
[Black "DryCounty"]
[Result "0-1"]
[WhiteElo "2544"]
[BlackElo "2487"]
[TimeControl "180+2"]
[EndTime "13:50:21 PDT"]
[Termination "DryCounty won on time"]

1. d4 {[%clk 0:03:02]} 1... Nf6 {[%clk 0:02:55.7]} 2. Bf4 {[%clk 0:03:03.5]}
2... Nh5 {[%clk 0:02:56.2]} 3. Bc1 {[%clk 0:03:03.5]} 3... Nf6 {[%clk
0:02:56.9]} 4. Bf4 {[%clk 0:03:04.6]} 4... Nh5 {[%clk 0:02:57.9]} 5. Bc1 {[%clk
0:03:01.4]} 5... Nf6 {[%clk 0:02:58.9]} 6. Bg5 {[%clk 0:03:03.1]} 6... Ne4
{[%clk 0:02:59]} 7. Bf4 {[%clk 0:03:04.1]} 7... c5 {[%clk 0:02:59.4]} 8. f3
{[%clk 0:03:05]} 8... Qa5+ {[%clk 0:02:59.4]} 9. c3 {[%clk 0:03:05.8]} 9... Nf6
{[%clk 0:02:59.7]} 10. d5 {[%clk 0:03:07.4]} 10... Qb6 {[%clk 0:02:59.8]} 11.
Bc1 {[%clk 0:03:08.4]} 11... e6 {[%clk 0:02:59.1]} 12. c4 {[%clk 0:03:09.9]}
12... Be7 {[%clk 0:02:40.6]} 13. e4 {[%clk 0:03:08.8]} 13... d6 {[%clk
0:02:37.8]} 14. Ne2 {[%clk 0:02:54.8]} 14... O-O {[%clk 0:02:38.1]} 15. Nec3
{[%clk 0:02:56]} 15... exd5 {[%clk 0:02:38.1]} 16. cxd5 {[%clk 0:02:57]} 16...
Nfd7 {[%clk 0:02:26.2]} 17. Nd2 {[%clk 0:02:35.2]} 17... f5 {[%clk 0:02:20.1]}
18. Nc4 {[%clk 0:02:11.3]} 18... Qd8 {[%clk 0:02:18.2]} 19. exf5 {[%clk
0:01:59.9]} 19... Nb6 {[%clk 0:02:10.8]} 20. Nxb6 {[%clk 0:01:16.4]} 20... Qxb6
{[%clk 0:02:12.7]} 21. Bd3 {[%clk 0:01:17.7]} 21... Nd7 {[%clk 0:02:07.8]} 22.
f4 {[%clk 0:01:06.2]} 22... Nf6 {[%clk 0:02:01.4]} 23. Qe2 {[%clk 0:00:54.7]}
23... Re8 {[%clk 0:01:53.9]} 24. Bb5 {[%clk 0:00:37.8]} 24... Bxf5 {[%clk
0:01:47.3]} 25. Bxe8 {[%clk 0:00:38.7]} 25... Rxe8 {[%clk 0:01:42.9]} 26. O-O
{[%clk 0:00:40.3]} 26... Bf8 {[%clk 0:01:37.4]} 27. Qb5 {[%clk 0:00:35.5]} 27...
Qxb5 {[%clk 0:01:36.1]} 28. Nxb5 {[%clk 0:00:37.4]} 28... Bd3 {[%clk 0:01:36.7]}
29. Nc7 {[%clk 0:00:29.6]} 29... Re2 {[%clk 0:01:13.2]} 30. f5 {[%clk 0:00:11]}
30... Ng4 {[%clk 0:01:07.9]} 31. h3 {[%clk 0:00:05.7]} 31... Be4 {[%clk
0:01:07.3]} 32. hxg4 {[%clk 0:00:05.9]} 32... Rxg2+ {[%clk 0:01:06.5]} 33. Kh1
{[%clk 0:00:07.4]} 33... Rxb2+ {[%clk 0:01:04]} 34. Kg1 {[%clk 0:00:08.5]} 34...
Rg2+ {[%clk 0:01:04.9]} 35. Kh1 {[%clk 0:00:10]} 35... Rxa2+ {[%clk 0:01:00.4]}
36. Kg1 {[%clk 0:00:11.5]} 36... Rxa1 {[%clk 0:01:00.6]} 37. Bf4 {[%clk
0:00:12.8]} 37... Rxf1+ {[%clk 0:00:56.6]} 38. Kxf1 {[%clk 0:00:14.7]} 38... a6
{[%clk 0:00:50.4]} 39. Kf2 {[%clk 0:00:15.5]} 39... Be7 {[%clk 0:00:48.1]} 40.
Ke3 {[%clk 0:00:16.1]} 40... Bg2 {[%clk 0:00:45.7]} 41. Na8 {[%clk 0:00:15]}
41... Bxd5 {[%clk 0:00:45.3]} 42. Nb6 {[%clk 0:00:15.9]} 42... Bc6 {[%clk
0:00:46.1]} 43. Nc8 {[%clk 0:00:17.4]} 43... Kf7 {[%clk 0:00:43.5]} 44. Nxd6+
{[%clk 0:00:18.3]} 44... Bxd6 {[%clk 0:00:42.9]} 45. Bxd6 {[%clk 0:00:20.2]}
45... c4 {[%clk 0:00:42.7]} 46. Kd4 {[%clk 0:00:21.7]} 46... Bf3 {[%clk
0:00:41.5]} 47. g5 {[%clk 0:00:21.8]} 47... Bg4 {[%clk 0:00:41.9]} 48. Ke5
{[%clk 0:00:15.4]} 48... c3 {[%clk 0:00:35.6]} 49. Kf4 {[%clk 0:00:16.4]} 49...
c2 {[%clk 0:00:34.1]} 50. Ba3 {[%clk 0:00:17.5]} 50... Bh3 {[%clk 0:00:34.2]}
51. Bb2 {[%clk 0:00:12.4]} 51... b5 {[%clk 0:00:33.2]} 52. f6 {[%clk 0:00:06.3]}
52... gxf6 {[%clk 0:00:33.4]} 53. gxf6 {[%clk 0:00:08.2]} 53... b4 {[%clk
0:00:32.9]} 54. Ke3 {[%clk 0:00:09.6]} 54... a5 {[%clk 0:00:30.9]} 55. Kd2
{[%clk 0:00:11.1]} 55... Bf5 {[%clk 0:00:31.8]} 56. Be5 {[%clk 0:00:09.7]} 56...
a4 {[%clk 0:00:32.3]} 57. Kc1 {[%clk 0:00:07.5]} 57... h5 {[%clk 0:00:32.2]} 58.
Bd6 {[%clk 0:00:05.7]} 58... b3 {[%clk 0:00:32.5]} 59. Kb2 {[%clk 0:00:04]}
59... h4 {[%clk 0:00:32.8]} 60. Bf4 {[%clk 0:00:03.6]} 60... Kxf6 {[%clk
0:00:32.6]} 61. Ka3 {[%clk 0:00:05.2]} 61... h3 {[%clk 0:00:32.1]} 62. Bh2
{[%clk 0:00:03.7]} 62... c1=Q+ {[%clk 0:00:32.4]} 0-1